bitfinex-derivatives/quotes_SOLF0:USTF0_20250307
["timestamp","ask_amount","ask_price","bid_price","bid_amount"]
[1741344532871,27.58,143.44,143.42,8.545e-05]
[1741344533476,0.04492453,143.45,143.42,8.545e-05]
[1741344534580,6.9707,143.44,143.42,8.545e-05]
[1741344535583,6.9707,143.44,143.42,11.7609264]
[1741344538283,0.04492453,143.45,143.43,6.9711]
[1741344538581,0.04492453,143.45,143.44,11.76084095]
[1741344540475,7.01512453,143.45,143.44,11.76084095]
[1741344541083,7.01512453,143.45,143.42,11.7609264]
[1741344541084,6.9712,143.43,143.42,11.7609264]
[1741344541277,6.9712,143.43,143.42,8.545e-05]
[1741344543689,6.9709,143.44,143.42,8.545e-05]
[1741344544187,0.04492453,143.45,143.42,8.545e-05]
[1741344544389,7.01542453,143.45,143.42,11.7609264]
[1741344544586,0.04492453,143.45,143.42,11.7609264]
[1741344544978,0.04492453,143.45,143.44,11.76084095]
[1741344546187,0.04492453,143.45,143.44,18.73154095]
[1741344546384,0.04492453,143.45,143.44,11.76084095]
[1741344548787,7.01512453,143.45,143.44,11.76084095]
[1741344549682,6.9709,143.44,143.42,8.545e-05]
[1741344549881,0.04492453,143.45,143.42,11.7609264]
[1741344550086,0.04492453,143.45,143.44,11.76084095]
[1741344551494,0.04492453,143.45,143.44,18.73154095]
[1741344553199,13.0272923,143.52,143.44,15.24084095]
[1741344553396,29.00038477,143.55,143.51,11.76084095]
[1741344553901,29.00038477,143.55,143.53,11.76084095]
[1741344554298,29.05286777,143.55,143.53,11.80500401]
[1741344554697,0.052483,143.55,143.53,11.80500401]
[1741344557999,0.052483,143.55,143.53,18.77100401]
[1741344559397,0.052483,143.55,143.53,11.80500401]
[1741344560996,0.052483,143.55,143.54,6.9658]
[1741344561301,41.18744095,143.63,143.56,11.76084095]
[1741344561495,41.96642446,143.67,143.58,11.76084095]
[1741344561698,11.76084095,143.65,143.6,11.76084095]
[1741344561905,29.00038477,143.67,143.62,11.76084095]
[1741344562203,29.00038477,143.67,143.66,11.76084095]
[1741344563294,28.53838178,143.67,143.66,39.28084095]
[1741344563493,28.53838178,143.67,143.66,46.24084095]
[1741344563804,28.53838178,143.67,143.63,0.04551001]
[1741344564204,6.9606,143.65,143.63,0.04551001]
[1741344564404,27.5,143.65,143.63,0.04551001]
[1741344564602,6.961,143.64,143.63,0.04551001]
[1741344567507,6.961,143.64,143.63,1.001e-05]
[1741344568307,233.26084095,143.71,143.63,1.001e-05]
[1741344568509,221.5,143.71,143.66,11.76084095]
[1741344568713,0.04462108,143.68,143.66,11.76084095]
[1741344569012,0.04462108,143.68,143.67,11.76084095]
[1741344569915,7.00362108,143.68,143.67,11.76084095]
[1741344570718,0.04462108,143.68,143.66,0.05136269]
[1741344571312,7.00372108,143.68,143.66,0.05136269]
[1741344571517,0.04462108,143.68,143.66,0.05136269]
[1741344571720,7.00372108,143.68,143.66,0.05136269]
[1741344572325,0.04462108,143.68,143.66,0.05136269]
[1741344573327,6.9595,143.67,143.66,0.05136269]
[1741344575423,7.00372108,143.68,143.66,0.05136269]
[1741344575725,0.04462108,143.68,143.66,0.05136269]
[1741344576524,7.00392108,143.68,143.66,0.05136269]
[1741344578824,0.04462108,143.68,143.66,0.05136269]
[1741344579830,0.04462108,143.68,143.67,6.9595]
[1741344580029,0.04462108,143.68,143.66,0.05136269]
[1741344580230,0.04462108,143.68,143.66,7.01116269]
[1741344580828,0.04462108,143.68,143.66,0.05136269]
[1741344581430,6.9595,143.67,143.66,0.05136269]
[1741344581622,0.04462108,143.68,143.66,0.05136269]
[1741344581823,6.9595,143.67,143.66,0.05136269]
[1741344582928,0.04462108,143.68,143.66,0.05136269]
[1741344583223,7.00372108,143.68,143.66,0.05136269]
[1741344584927,0.04462108,143.68,143.66,0.05136269]
[1741344585126,6.9595,143.67,143.66,0.05136269]
[1741344585331,0.04462108,143.68,143.66,0.05136269]
[1741344586422,6.9595,143.67,143.66,0.05136269]
[1741344587024,7.00392108,143.68,143.66,0.05136269]
[1741344587330,0.04462108,143.68,143.66,0.05136269]
[1741344588728,0.04462108,143.68,143.66,7.01106269]
[1741344589339,6.9595,143.67,143.66,0.05136269]
[1741344590928,11.72300781,143.67,143.6,11.72300781]
[1741344591124,11.72300781,143.65,143.59,11.72300781]
[1741344592034,0.04601847,143.63,143.61,0.04865679]
[1741344592531,11.76902628,143.63,143.61,0.04865679]
[1741344592730,6.9619,143.62,143.61,0.04865679]
[1741344598639,7.00761847,143.63,143.61,0.04865679]
[1741344598932,0.04601847,143.63,143.61,0.04865679]
[1741344601132,6.9619,143.62,143.61,0.04865679]
[1741344602239,7.00761847,143.63,143.61,0.04865679]
[1741344602946,0.04601847,143.63,143.61,0.04865679]
[1741344603639,0.04601847,143.63,143.62,25.29594615]
[1741344603839,194.0,143.7,143.62,18.33404615]
[1741344604044,27.44,143.72,143.64,18.33404615]
[1741344604237,27.44,143.72,143.62,22.26474615]
[1741344604641,27.44,143.72,143.62,29.22654615]
[1741344604833,27.44,143.72,143.62,22.26474615]
[1741344605032,0.04694414,143.68,143.66,0.05259477]
[1741344605234,6.9598,143.67,143.66,0.05259477]
[1741344605932,0.04694414,143.68,143.66,0.05259477]
[1741344606138,0.04694414,143.68,143.66,18.38664092]
[1741344606551,0.04694414,143.68,143.66,0.05259477]
[1741344607344,0.04694414,143.68,143.67,6.9595]
[1741344610840,6.9566,143.73,143.66,18.38664092]
[1741344611045,194.0,143.75,143.7,6.958]
[1741344611448,6.9572,143.72,143.69,27.42]
[1741344611750,194.0,143.75,143.66,45.75404615]
[1741344612144,14.81640544,143.79,143.73,18.33404615]
[1741344612444,14.81640544,143.79,143.75,18.33404615]
[1741344612643,77.3343594,143.82,143.76,34.3748]
[1741344612843,102.0562373,143.83,143.76,27.42]
[1741344613156,28.87842477,143.82,143.76,27.42]
[1741344613450,30.90222477,143.82,143.73,45.75404615]
[1741344613648,30.90222477,143.82,143.78,0.04987234]
[1741344613947,6.9538,143.79,143.78,0.04987234]
[1741344614945,6.9553,143.76,143.73,27.42]
[1741344615352,6.9547,143.77,143.73,27.42]
[1741344615957,0.04575143,143.76,143.74,0.04981351]
[1741344617152,0.04575143,143.76,143.75,18.33404615]
[1741344617453,194.0,143.84,143.75,18.33404615]
[1741344617655,27.42,143.87,143.78,18.33404615]
[1741344617854,1.27820418,143.86,143.78,18.33404615]
[1741344618156,6.9529,143.81,143.78,18.33404615]
[1741344618455,27.42,143.87,143.78,0.04587678]
[1741344618750,6.954,143.79,143.76,18.33404615]
[1741344618950,27.42,143.83,143.81,0.04688268]
[1741344619155,27.42,143.83,143.76,18.33404615]
[1741344619648,27.42,143.83,143.78,0.05194691]
[1741344619955,6.9537,143.79,143.78,0.05194691]
[1741344621256,6.9537,143.79,143.78,4.691e-05]
[1741344621860,34.3537,143.79,143.78,4.691e-05]
[1741344622058,36.3536,143.79,143.78,4.691e-05]
[1741344622252,39.8336,143.79,143.78,4.691e-05]
[1741344622449,226.8799,143.79,143.68,18.33404615]
[1741344622651,18.33404615,143.77,143.67,2.0054]
[1741344623356,6.9585,143.7,143.67,2.0054]
[1741344623552,27.4,143.75,143.67,2.0054]
[1741344623744,0.04745781,143.7,143.67,2.0580405]
[1741344623949,0.04745781,143.7,143.67,0.0526405]
[1741344624561,6.959,143.68,143.67,0.0526405]
[1741344625355,6.9611,143.64,143.62,45.73404615]
[1741344625557,6.9611,143.64,143.62,27.4]
[1741344625953,6.9605,143.66,143.62,27.4]
[1741344626550,0.04673197,143.65,143.63,0.05142326]
[1741344630166,0.04673197,143.65,143.64,18.33404615]
[1741344631165,0.04673197,143.65,143.64,25.29504615]
[1741344631662,0.04673197,143.65,143.64,18.33404615]
[1741344631863,0.04673197,143.65,143.63,0.05142326]
[1741344632279,0.04673197,143.65,143.63,7.01252326]
[1741344632671,0.04673197,143.65,143.63,0.05142326]
[1741344633181,0.04673197,143.65,143.64,25.29504615]
[1741344634476,0.04673197,143.65,143.64,18.33404615]
[1741344635179,0.04673197,143.65,143.63,7.01272326]
[1741344635371,0.04673197,143.65,143.63,0.05142326]
[1741344635577,0.04673197,143.65,143.64,6.961]
[1741344636179,0.04673197,143.65,143.63,7.01272326]
[1741344637478,0.04673197,143.65,143.63,0.05142326]
[1741344638883,6.961,143.64,143.63,0.05142326]
[1741344641285,0.04673197,143.65,143.63,45.78546941]
[1741344641481,194.0,143.73,143.63,45.78546941]
[1741344641784,6.9588,143.69,143.65,25.29404615]
[1741344642385,239.73404615,143.75,143.65,18.33404615]
[1741344642683,239.73404615,143.75,143.66,0.05366038]
[1741344642874,7.0107947,143.71,143.65,18.33404615]
[1741344643077,0.0530947,143.71,143.69,0.05170481]
[1741344643283,0.0530947,143.71,143.67,18.33404615]
[1741344643579,0.0530947,143.71,143.69,0.05200747]
[1741344644086,6.9581,143.7,143.69,0.05200747]
[1741344644687,0.0530947,143.71,143.63,45.73404615]
[1741344644886,45.73404615,143.73,143.63,45.73404615]
[1741344645190,6.9588,143.69,143.65,6.9604]
[1741344645487,27.4,143.69,143.63,18.33404615]
[1741344645681,7.01035103,143.68,143.66,0.05039413]
[1741344646086,0.05105103,143.68,143.66,0.05039413]
[1741344647487,6.9595,143.67,143.66,0.05039413]
[1741344651988,21.81404615,143.67,143.56,18.33404615]
[1741344652285,18.33404615,143.64,143.54,18.33404615]
[1741344652491,6.9647,143.57,143.53,3.9929]
[1741344652993,27.4,143.59,143.53,3.9929]
[1741344653183,0.04838655,143.56,143.54,0.05191118]
[1741344653586,27.4,143.61,143.53,3.9929]
[1741344653793,6.9638,143.59,143.56,18.33404615]
[1741344654095,0.04970792,143.58,143.56,18.33404615]
[1741344654288,0.04970792,143.58,143.56,18.38724528]
[1741344655091,0.04970792,143.58,143.57,6.9644]
[1741344655289,0.04970792,143.58,143.56,18.38724528]
[1741344655488,0.04970792,143.58,143.56,0.05319913]
[1741344656391,0.04970792,143.58,143.56,18.38724528]
[1741344657595,2.0543,143.65,143.56,45.78724528]
[1741344657893,27.4,143.64,143.56,45.73404615]
[1741344658401,27.4,143.64,143.59,6.963]
[1741344658692,0.04779188,143.63,143.6,0.0468183]
[1741344660399,7.00949188,143.63,143.6,0.0468183]
[1741344660599,0.04779188,143.63,143.6,0.0468183]
[1741344661002,18.38183803,143.63,143.53,3.9929]
[1741344661305,18.33404615,143.63,143.53,3.9929]
[1741344661505,6.9622,143.62,143.56,6.9648]
[1741344661905,20.33804615,143.63,143.56,6.9648]
[1741344662103,6.963,143.6,143.58,0.04412671]
[1741344662401,27.4,143.6,143.58,0.04412671]
[1741344663898,27.4,143.6,143.5,18.33404615]
[1741344664100,6.964,143.58,143.5,18.33404615]
[1741344664304,27.4,143.6,143.5,18.33404615]
[1741344664996,0.04845514,143.56,143.54,0.05060619]
[1741344665704,0.04845514,143.56,143.54,7.01610619]
[1741344665904,0.04845514,143.56,143.54,0.05060619]
[1741344666403,0.04845514,143.56,143.55,6.9653]
[1741344670305,27.4,143.62,143.61,6.9624]
[1741344670714,27.4,143.62,143.56,18.33404615]
[1741344670904,27.4,143.62,143.59,6.963]
[1741344671104,27.4,143.62,143.56,18.33404615]
[1741344671304,0.0459115,143.6,143.58,0.04486833]
[1741344671613,0.0459115,143.6,143.59,6.9634]
[1741344672111,27.4,143.66,143.63,6.961]
[1741344672607,27.4,143.66,143.64,6.9609]
[1741344672804,27.4,143.67,143.64,6.9609]
[1741344673202,27.45284019,143.67,143.64,7.00969807]
[1741344675419,45.78688634,143.67,143.64,0.04879807]
[1741344676613,34.41264019,143.67,143.64,0.04879807]
[1741344676815,27.45284019,143.67,143.64,0.04879807]
[1741344677005,18.33404615,143.65,143.56,20.33274615]
[1741344677318,6.962,143.62,143.55,29.259]
[1741344677609,34.342,143.62,143.55,1.879]
[1741344678019,27.38,143.62,143.55,1.879]
[1741344678213,0.04405475,143.6,143.57,0.04711477]
[1741344678409,0.04405475,143.6,143.59,6.963]
[1741344680408,0.04405475,143.6,143.57,0.04711477]
[1741344680615,0.04405475,143.6,143.59,6.9634]
[1741344682615,0.04405475,143.6,143.57,27.42711477]
[1741344682915,0.04405475,143.6,143.58,6.9634]
[1741344683216,0.04405475,143.6,143.57,0.04711477]
[1741344684205,0.04405475,143.6,143.59,6.9634]
[1741344685315,27.38,143.67,143.63,6.9612]
[1741344685618,27.38,143.67,143.6,18.33404615]
[1741344686114,27.38,143.67,143.63,6.9613]
[1741344686511,0.04582195,143.66,143.64,0.04759248]
[1741344687318,0.04582195,143.66,143.64,7.00849248]
[1741344687617,0.04582195,143.66,143.64,0.04759248]
[1741344688917,0.04582195,143.66,143.65,6.9605]
[1741344689613,0.04582195,143.66,143.64,7.00839248]
[1741344689917,0.04582195,143.66,143.64,0.04759248]
[1741344690116,0.04582195,143.66,143.65,6.9605]
[1741344692323,0.04582195,143.66,143.64,0.04759248]
[1741344692519,0.04582195,143.66,143.64,7.00829248]
[1741344692817,0.04582195,143.66,143.56,18.33404615]
[1741344693120,27.38,143.65,143.56,20.21014615]
[1741344693511,27.38,143.65,143.6,6.9625]
[1741344693722,27.38,143.65,143.56,20.21014615]
[1741344693909,6.9612,143.64,143.59,7.01034213]
[1741344694114,0.04607685,143.62,143.59,7.01034213]
[1741344694519,0.04607685,143.62,143.59,0.04734213]
[1741344695323,0.04607685,143.62,143.6,6.9626]
[1741344696021,0.04607685,143.62,143.61,6.9624]
[1741344699425,29.3929,143.69,143.65,6.9601]
[1741344699820,29.3929,143.69,143.6,18.33404615]
[1741344700027,27.36,143.69,143.62,18.33404615]
[1741344700420,0.05215148,143.67,143.65,6.9601]
[1741344700616,0.05215148,143.67,143.64,0.05231601]
[1741344701127,0.05215148,143.67,143.65,6.9601]
[1741344702224,0.05215148,143.67,143.66,6.96]
[1741344703531,0.05215148,143.67,143.65,6.9603]
[1741344703931,0.05215148,143.67,143.64,0.05231601]
[1741344704133,0.05215148,143.67,143.64,7.01321601]
[1741344704430,0.05215148,143.67,143.64,0.05231601]
[1741344704825,0.05215148,143.67,143.66,6.96]
[1741344705025,0.05215148,143.67,143.64,0.05231601]
[1741344705425,0.05215148,143.67,143.65,6.9602]
[1741344705627,0.05215148,143.67,143.64,0.05231601]
[1741344707843,0.05215148,143.67,143.65,6.9605]
[1741344708032,0.05215148,143.67,143.64,0.05231601]
[1741344708437,0.05215148,143.67,143.64,7.01301601]
[1741344709335,0.05215148,143.67,143.64,7.01291601]
[1741344709835,0.05215148,143.67,143.64,0.05231601]
[1741344710539,7.01195148,143.67,143.64,7.01311601]
[1741344711136,0.05215148,143.67,143.65,6.9602]
[1741344712335,7.01195148,143.67,143.64,7.01301601]
[1741344712638,0.05215148,143.67,143.64,7.01301601]
[1741344712939,6.9605,143.66,143.64,0.05231601]
[1741344714132,0.05215148,143.67,143.64,0.05231601]
[1741344714335,6.9605,143.65,143.64,0.05231601]
[1741344715233,6.9602,143.66,143.64,0.05231601]
[1741344716037,0.05215148,143.67,143.64,0.05231601]
[1741344716239,6.9605,143.65,143.64,0.05231601]
[1741344716442,27.34,143.65,143.57,1.9411]
[1741344716641,39.07145622,143.65,143.58,11.73145622]
[1741344716841,6.9621,143.62,143.58,11.73145622]
[1741344717242,6.9621,143.62,143.58,18.69525622]
[1741344717436,39.07145622,143.65,143.58,18.69525622]
[1741344717641,0.04954543,143.61,143.59,0.0493142]
[1741344719639,0.04954543,143.61,143.59,7.0126142]
[1741344722244,0.04954543,143.61,143.6,6.9629]
[1741344728453,0.04954543,143.61,143.59,0.0493142]
[1741344729059,0.04954543,143.61,143.59,7.0123142]
[1741344729362,0.04954543,143.61,143.59,0.0493142]
[1741344729553,0.04954543,143.61,143.6,6.9629]
[1741344731662,0.04954543,143.61,143.59,7.0124142]
[1741344732663,0.04954543,143.61,143.6,6.9629]
[1741344738063,0.04954543,143.61,143.59,7.0126142]
[1741344738262,0.04954543,143.61,143.59,0.0493142]
[1741344740069,0.04954543,143.61,143.6,11.73233493]
[1741344740568,0.04954543,143.61,143.6,18.69523493]
[1741344744472,0.04954543,143.61,143.59,7.0125142]
[1741344744670,0.04954543,143.61,143.59,0.0493142]
[1741344744869,7.01194543,143.61,143.59,0.0493142]
[1741344745267,0.04954543,143.61,143.59,7.0126142]
[1741344745464,0.04954543,143.61,143.59,0.0493142]
[1741344745875,7.01224543,143.61,143.59,0.0493142]
[1741344746074,0.04954543,143.61,143.59,0.0493142]
[1741344746675,0.04954543,143.61,143.59,7.0124142]
[1741344747675,0.04954543,143.61,143.59,0.0493142]
[1741344748262,6.9629,143.6,143.59,0.0493142]
[1741344749178,0.04954543,143.61,143.59,0.0493142]
[1741344749377,6.9629,143.6,143.59,0.0493142]
[1741344750277,0.04954543,143.61,143.59,11.78164913]
[1741344751775,0.04954543,143.61,143.6,6.9629]
[1741344751972,0.04954543,143.61,143.59,11.78164913]
[1741344752372,0.04954543,143.61,143.59,18.74454913]
[1741344753078,0.04954543,143.61,143.6,6.9629]
[1741344755077,0.04954543,143.61,143.59,11.78164913]
[1741344755381,0.04954543,143.61,143.59,18.74484913]
[1741344755978,0.04954543,143.61,143.59,11.78164913]
[1741344756579,7.01224543,143.61,143.59,11.78164913]
[1741344757273,0.04954543,143.61,143.6,6.9629]
[1741344763085,0.04954543,143.61,143.59,46.04494913]
[1741344763783,0.04954543,143.61,143.59,39.08164913]
[1741344764086,0.04954543,143.61,143.6,6.9629]
[1741344766788,4.543e-05,143.61,143.6,6.9629]
[1741344766981,2.0592,143.68,143.6,1.8715]
[1741344767177,2.0592,143.68,143.64,11.73233493]
[1741344767984,6.9601,143.66,143.64,11.73233493]
[1741344768181,6.9601,143.66,143.65,0.04756735]
[1741344768683,0.04599533,143.67,143.65,0.04756735]
[1741344769083,0.04599533,143.67,143.66,11.73233493]
[1741344769475,0.04599533,143.67,143.66,18.69233493]
[1741344769678,0.04599533,143.67,143.66,11.73233493]
[1741344771485,0.04599533,143.67,143.66,18.69233493]
[1741344772287,27.28,143.74,143.66,11.73233493]
[1741344772592,11.73233493,143.75,143.68,11.73233493]
[1741344772788,18.68813493,143.75,143.7,11.73233493]
[1741344772993,18.68813493,143.75,143.71,6.9573]
[1741344773490,0.05263961,143.74,143.72,0.04569029]
[1741344773889,7.00883961,143.74,143.72,0.04569029]
[1741344774591,6.9566,143.73,143.72,0.04569029]
[1741344779990,0.05263961,143.74,143.72,0.04569029]
[1741344780196,7.00903961,143.74,143.72,0.04569029]
[1741344780390,0.05263961,143.74,143.72,0.04569029]
[1741344781402,6.9566,143.73,143.72,0.04569029]
[1741344781892,0.05263961,143.74,143.72,0.04569029]
[1741344782195,6.9566,143.73,143.72,0.04569029]
[1741344782698,0.05263961,143.74,143.72,0.04569029]
[1741344783394,0.05263961,143.74,143.73,11.73233493]
[1741344783593,0.05263961,143.74,143.73,18.68893493]
[1741344785797,0.05263961,143.74,143.72,0.04569029]
[1741344786389,6.9566,143.73,143.72,0.04569029]
[1741344791099,6.9566,143.73,143.72,9.029e-05]
[1741344794900,0.05263961,143.74,143.72,9.029e-05]
[1741344796007,6.9566,143.73,143.72,9.029e-05]
[1741344799808,8.9939,143.73,143.72,9.029e-05]
[1741344800310,12.4739,143.73,143.72,9.029e-05]
[1741344800712,8.9939,143.73,143.72,9.029e-05]
[1741344802816,20.72623493,143.73,143.72,9.029e-05]
[1741344804218,24.20623493,143.73,143.72,9.029e-05]
[1741344804612,20.72623493,143.73,143.72,9.029e-05]
[1741344805720,47.96623493,143.73,143.72,9.029e-05]
[1741344815129,51.44623493,143.73,143.72,9.029e-05]
[1741344816530,47.96623493,143.73,143.72,9.029e-05]
[1741344818042,6.9605,143.65,143.64,11.73233493]
[1741344819138,7.00896133,143.66,143.64,11.73233493]
[1741344819436,0.04866133,143.66,143.64,11.73233493]
[1741344819737,7.00886133,143.66,143.64,11.73233493]
[1741344821330,0.04866133,143.66,143.64,11.73233493]
[1741344821530,0.04866133,143.66,143.64,18.69303493]
[1741344822431,7.00896133,143.66,143.64,18.69303493]
[1741344823835,7.00896133,143.66,143.64,11.73233493]
[1741344824440,7.00896133,143.66,143.64,18.69293493]
[1741344824441,7.00866133,143.66,143.64,18.69293493]
[1741344825135,0.04866133,143.66,143.65,6.9605]
[1741344835146,0.04866133,143.66,143.65,10.4405]
[1741344835451,40.83333493,143.77,143.65,3.48]
[1741344835747,40.83333493,143.77,143.71,11.73233493]
[1741344836244,6.9564,143.74,143.71,18.68983493]
[1741344836446,6.9564,143.74,143.73,0.04402383]
[1741344838253,6.9564,143.74,143.73,2.383e-05]
[1741344846250,7.00249506,143.75,143.73,2.383e-05]
[1741344846957,6.9561,143.74,143.73,2.383e-05]
[1741344847160,0.04669506,143.75,143.73,2.383e-05]
[1741344847353,0.04669506,143.75,143.73,11.73235876]
[1741344847547,0.04669506,143.75,143.74,6.9561]
[1741344847753,194.0,143.78,143.73,13.78845876]
[1741344847961,11.73233493,143.8,143.73,13.78845876]
[1741344848157,6.9539,143.79,143.75,11.73233493]
[1741344848755,6.9539,143.79,143.76,0.05358258]
[1741344848960,0.05144454,143.78,143.76,0.05358258]
[1741344849461,6.9534,143.8,143.77,11.73233493]
[1741344849658,38.91233493,143.83,143.77,11.73233493]
[1741344849956,6.954,143.79,143.77,11.73233493]
[1741344850161,11.73233493,143.81,143.76,0.05358258]
[1741344850460,11.73233493,143.79,143.76,0.05358258]
[1741344850658,6.9547,143.77,143.76,0.05358258]
[1741344851656,18.68703493,143.77,143.76,8.258e-05]
[1741344857968,6.9547,143.77,143.76,8.258e-05]
[1741344858166,0.02107204,143.8,143.76,11.73241751]
[1741344858369,6.97427204,143.8,143.76,11.73241751]
[1741344858969,0.02107204,143.8,143.76,11.73241751]
[1741344859569,6.9542,143.79,143.76,11.73241751]
[1741344860268,0.02107204,143.8,143.76,11.73241751]
[1741344860468,0.02107204,143.8,143.78,11.73233493]
[1741344861267,0.02107204,143.8,143.78,38.89233493]
[1741344861472,0.02107204,143.8,143.78,27.16]
[1741344861766,0.02107204,143.8,143.78,38.89233493]
[1741344867169,0.02107204,143.8,143.78,45.84653493]
[1741344867872,0.02107204,143.8,143.78,38.89233493]
[1741344869167,0.02107204,143.8,143.78,45.84643493]
[1741344870171,0.02107204,143.8,143.78,38.89233493]
[1741344870382,0.02107204,143.8,143.79,6.9537]
[1741344872177,106.2802037,143.93,143.79,3.48]
[1741344872379,11.73233493,143.9,143.84,11.73233493]
[1741344873283,6.9501,143.87,143.84,11.73233493]
[1741344873580,0.04464204,143.88,143.86,0.04890642]
[1741344874168,0.04464204,143.88,143.86,11.78124135]
[1741344876278,6.9498,143.87,143.86,0.04890642]
[1741344884691,6.9498,143.87,143.86,6.42e-06]
[1741344887594,6.99424204,143.88,143.86,6.42e-06]
[1741344887795,6.99424204,143.88,143.87,11.73233493]
[1741344890599,0.04464204,143.88,143.87,11.73233493]
[1741344895502,6.99404204,143.88,143.87,11.73233493]
[1741344895797,0.04464204,143.88,143.87,11.73233493]
[1741344897201,0.04464204,143.88,143.86,6.42e-06]
[1741344898407,6.9498,143.87,143.86,6.42e-06]
[1741344903806,0.04464204,143.88,143.86,6.42e-06]
[1741344904014,40.71784503,143.96,143.87,11.73233493]
[1741344904308,53.6726919,143.96,143.91,11.73233493]
[1741344904507,40.71784503,143.96,143.91,11.73233493]
[1741344904710,6.9461,143.95,143.91,11.73233493]
[1741344905100,35.9316101,143.95,143.91,11.73233493]
[1741344905306,0.04957204,143.94,143.92,0.049389]
[1741344906607,6.99607204,143.94,143.92,0.049389]
[1741344906811,0.04957204,143.94,143.92,0.049389]
[1741344907915,6.99637204,143.94,143.92,0.049389]
[1741344908913,0.04957204,143.94,143.92,0.049389]
[1741344909113,6.9469,143.93,143.92,0.049389]
[1741344909416,0.04957204,143.94,143.92,0.049389]
[1741344909711,11.78190697,143.94,143.92,0.049389]
[1741344910317,6.9469,143.93,143.92,0.049389]
[1741344911210,6.9496,143.88,143.86,11.73233493]
[1741344911413,11.73233493,143.92,143.86,11.73233493]
[1741344912011,27.08,143.91,143.86,11.73233493]
[1741344912212,0.04889031,143.9,143.87,0.04940791]
[1741344913007,6.9494,143.88,143.87,0.04940791]
[1741344913217,0.04889031,143.9,143.87,0.04940791]
[1741344913408,6.99749031,143.9,143.87,0.04940791]
[1741344913916,0.04889031,143.9,143.87,0.04940791]
[1741344914111,6.9492,143.89,143.87,0.04940791]
[1741344915016,6.9494,143.88,143.87,0.04940791]
[1741344918017,6.9494,143.88,143.8,18.68533493]
[1741344918018,11.73233493,143.88,143.8,18.68533493]
[1741344918222,11.73233493,143.86,143.8,11.73233493]
[1741344918820,6.9526,143.82,143.8,11.73233493]
[1741344919019,11.73233493,143.86,143.8,11.73233493]
[1741344919214,0.05331415,143.82,143.8,11.77863935]
[1741344919713,0.05331415,143.82,143.8,18.73183935]
[1741344920417,0.05331415,143.82,143.8,11.77863935]
[1741344921614,24.68753006,143.9,143.8,11.77863935]
[1741344921821,24.68753006,143.9,143.79,27.06]
[1741344921822,38.81233493,143.9,143.84,11.73233493]
[1741344922122,38.81233493,143.9,143.84,18.68313493]
[1741344922322,6.9497,143.88,143.84,18.68313493]
[1741344922513,38.81233493,143.9,143.84,18.68313493]
[1741344922713,38.81233493,143.9,143.85,6.9507]
[1741344922920,0.04515169,143.88,143.86,0.04610771]
[1741344924014,6.9498,143.87,143.86,0.04610771]
[1741344926022,0.04515169,143.88,143.86,0.04610771]
[1741344927314,6.99465169,143.88,143.86,0.04610771]
[1741344927921,0.04515169,143.88,143.86,0.04610771]
[1741344928224,0.04515169,143.88,143.86,6.99640771]
[1741344928524,0.04515169,143.88,143.86,0.04610771]
[1741344928725,6.99455169,143.88,143.86,0.04610771]
[1741344928924,0.04515169,143.88,143.86,0.04610771]
[1741344929525,0.04515169,143.88,143.86,6.99640771]
[1741344929718,0.04515169,143.88,143.86,0.04610771]
[1741344930116,14.82919513,143.94,143.86,0.04610771]
[1741344930117,6.9468,143.94,143.87,27.06]
[1741344930329,18.27105305,143.97,143.87,27.06]
[1741344930624,18.27105305,143.97,143.89,6.9485]
[1741344931222,6.9474,143.93,143.92,0.04618859]
[1741344932628,0.04710126,143.94,143.92,0.04618859]
[1741344933226,6.99370126,143.94,143.92,0.04618859]
[1741344933428,0.04710126,143.94,143.93,6.9469]
[1741344933730,0.04710126,143.94,143.92,0.04618859]
[1741344934327,6.99370126,143.94,143.92,0.04618859]
[1741344934531,0.04710126,143.94,143.92,0.04618859]
[1741344934831,6.9469,143.93,143.92,0.04618859]
[1741344935222,27.06,143.93,143.85,8.9465]
[1741344935424,6.9488,143.9,143.85,8.9465]
[1741344935728,27.06,143.93,143.85,8.9467]
[1741344935933,6.9492,143.89,143.85,8.9467]
[1741344936324,45.33105305,143.93,143.85,1.996]
[1741344936525,7.00285444,143.88,143.86,0.04427324]
[1741344936825,6.9495,143.88,143.86,0.04427324]
[1741344937027,6.99467045,143.88,143.86,0.04427324]
[1741344937427,0.04517045,143.88,143.86,0.04427324]
[1741344938627,0.04517045,143.88,143.86,6.99437324]
[1741344939428,0.04517045,143.88,143.86,0.04427324]
[1741344939828,6.99457045,143.88,143.86,0.04427324]
[1741344940134,0.04517045,143.88,143.86,6.99457324]
[1741344940936,6.99457045,143.88,143.86,0.04427324]
[1741344941434,6.9498,143.87,143.86,0.04427324]